[Event "10th Sharjah Cup Women 2020"]
[Site "Sharjah"]
[Date "2020.01.12"]
[Round "9.13"]
[White "Suleimanova, Ava"]
[Black "Kyrkjebo, Marte B."]
[Result "1/2-1/2"]
[ECO "A07"]
[WhiteElo "2213"]
[BlackElo "1880"]
[Annotator "ChessBase"]
[PlyCount "141"]
[EventDate "2020.01.04"]
[EventType "swiss"]
[EventCountry "UAE"]
[SourceTitle "playchess.com"]
[Source "ChessBase"]
[SourceQuality "1"]
[TimeControl "5400+30"]

1. Nf3 {[%emt 0:00:00]} Nf6 {[%emt 0:00:00]} 2. g3 {[%emt 0:00:00]} d5 {[%emt 0:00:00]} 3. Bg2 {[%emt 0:00:09]} c6 {[%emt 0:00:00]} 4. O-O {[%emt 0:00:18]} Bg4 {[%emt 0:00:32]} 5. c4 {[%emt 0:00:10]} Nbd7 {[%emt 0:01:10]} 6. b3 {[%emt 0:00:38]} e6 {[%emt 0:00:57]} 7. Bb2 {[%emt 0:00:06]} Be7 {[%emt 0:01:06]} 8. d3 {[%emt 0:00:07]} O-O {[%emt 0:00:46]} 9. Nbd2 {[%emt 0:00:16]} a5 {[%emt 0:03:55]} 10. a3 {[%emt 0:00:08]} Ne8 {[%emt 0:03:49]} 11. h3 {[%emt 0:01:06]} Bh5 {[%emt 0:02:54]} 12. Ra2 {[%emt 0:10:50]} Bf6 {[%emt 0:03:40]} 13. d4 {[%emt 0:00:16]} Nc7 {[%emt 0:03:55]} 14. g4 {[%emt 0:05:49]} Bg6 {[%emt 0:02:04]} 15. Ne5 {[%emt 0:01:36]} Nxe5 {[%emt 0:04:05]} 16. dxe5 {[%emt 0:00:10]} Be7 {[%emt 0:00:44]} 17. Qc1 {[%emt 0:06:57]} f6 {[%emt 0:03:51]} 18. cxd5 {[%emt 0:01:50]} exd5 {[%emt 0:01:13]} 19. e4 fxe5 {[%emt 0:06:52]} 20. Bxe5 {[%emt 0:04:14]} Bd6 {[%emt 0:02:11]} 21. Ba1 {[%emt 0:03:57]} Bf4 {[%emt 0:08:21]} 22. exd5 {[%emt 0:04:00]} Nxd5 {[%emt 0:01:32]} 23. Qc4 {[%emt 0:00:21]} Kh8 {[%emt 0:02:03]} 24. Ne4 {[%emt 0:00:52]} Qc7 {[%emt 0:09:17]} 25. Kh1 {[%emt 0:04:23]} Be5 {[%emt 0:07:05]} 26. Ng5 {[%emt 0:07:11]} Nf4 {[%emt 0:06:58]} 27. Ne6 {[%emt 0:01:41]} Nxe6 {[%emt 0:00:49]} 28. Qxe6 {[%emt 0:00:08]} Bxa1 {[%emt 0:00:14]} 29. Raxa1 {[%emt 0:02:37]} Rae8 {[%emt 0:01:11]} 30. Qc4 {[%emt 0:00:29]} Qb6 {[%emt 0:00:41]} 31. Rae1 {[%emt 0:06:27]} Rxe1 {[%emt 0:01:41]} 32. Rxe1 {[%emt 0:00:05]} Rxf2 {[%emt 0:06:05]} 33. Qe6 {[%emt 0:00:49]} Rf8 {[%emt 0:00:42]} 34. Qe7 {[%emt 0:00:44]} Kg8 {[%emt 0:02:19]} 35. Qe3 {[%emt 0:04:53]} Qxe3 {[%emt 0:01:13]} 36. Rxe3 {[%emt 0:00:07]} Re8 {[%emt 0:01:40]} 37. Rc3 {[%emt 0:02:49]} Re1+ {[%emt 0:02:18]} 38. Kh2 {[%emt 0:00:04]} Rb1 {[%emt 0:00:20]} 39. Rc5 {[%emt 0:00:19]} Rxb3 {[%emt 0:01:02]} 40. Rxa5 {[%emt 0:00:05]} Kf7 {[%emt 0:01:36]} 41. Ra8 {[%emt 0:02:00]} Bd3 {[%emt 0:03:05]} 42. Rb8 {[%emt 0:00:23]} Bc4 {[%emt 0:02:03]} 43. a4 {[%emt 0:00:18]} Kf6 {[%emt 0:01:50]} 44. a5 {[%emt 0:03:54]} Rb5 {[%emt 0:01:07]} 45. Ra8 {[%emt 0:00:12]} Rb2 {[%emt 0:00:55]} 46. Kg3 {[%emt 0:00:08]} Ra2 {[%emt 0:01:23]} 47. Ra7 {[%emt 0:00:26]} Bd5 {[%emt 0:00:58]} 48. Bxd5 {[%emt 0:05:38]} cxd5 {[%emt 0:00:02]} 49. h4 {[%emt 0:00:48]} h6 {[%emt 0:00:57]} 50. h5 {[%emt 0:04:03]} Ra4 {[%emt 0:00:46]} 51. Kf3 {[%emt 0:00:56]} Rb4 {[%emt 0:00:45]} 52. Ra8 {[%emt 0:01:31]} Ke5 {[%emt 0:00:38]} 53. Re8+ {[%emt 0:00:05]} Kf6 {[%emt 0:00:12]} 54. Ra8 {[%emt 0:01:50]} d4 {[%emt 0:00:22]} 55. a6 {[%emt 0:01:04]} bxa6 {[%emt 0:00:05]} 56. Rxa6+ {[%emt 0:00:03]} Ke5 {[%emt 0:00:53]} 57. Ra5+ {[%emt 0:00:06]} Kf6 {[%emt 0:00:24]} 58. Ra6+ {[%emt 0:00:19]} Kf7 {[%emt 0:00:40]} 59. Ra7+ {[%emt 0:00:15]} Kg8 {[%emt 0:00:53]} 60. Ra8+ {[%emt 0:00:14]} Kf7 {[%emt 0:00:23]} 61. Ra7+ {[%emt 0:00:06]} Kg8 {[%emt 0:00:11]} 62. Ra8+ {[%emt 0:00:32]} Kh7 {[%emt 0:00:33]} 63. Rd8 {[%emt 0:00:06]} Rb3+ {[%emt 0:00:37]} 64. Ke4 {[%emt 0:03:10]} Rg3 {[%emt 0:00:24]} 65. Kf4 {[%emt 0:00:08]} Rd3 {[%emt 0:00:30]} 66. Ke4 {[%emt 0:00:14]} Rd1 {[%emt 0:00:34]} 67. Rxd4 {[%emt 0:00:29]} Rxd4+ {[%emt 0:00:32]} 68. Kxd4 {[%emt 0:00:07]} g6 {[%emt 0:00:11]} 69. Ke5 {[%emt 0:01:02]} gxh5 {[%emt 0:00:20]} 70. gxh5 {[%emt 0:00:04]} Kg7 {[%emt 0:00:14]} 71. Ke4 1/2-1/2

[Event "10th Sharjah Cup Women 2020"]
[Site "Sharjah"]
[Date "2020.01.12"]
[Round "9.14"]
[White "Kiolbasa, Oliwia"]
[Black "Shanya Mishra"]
[Result "1-0"]
[ECO "A00"]
[WhiteElo "2196"]
[BlackElo "1907"]
[Annotator "ChessBase"]
[PlyCount "83"]
[EventDate "2020.01.04"]
[EventType "swiss"]
[EventCountry "UAE"]
[SourceTitle "playchess.com"]
[Source "ChessBase"]
[SourceQuality "1"]
[TimeControl "5400+30"]

1. e3 d5 {[%emt 0:00:00]} 2. Nf3 {[%emt 0:00:00]} c5 {[%emt 0:01:32]} 3. d4 {[%emt 0:01:42]} Nf6 {[%emt 0:01:26]} 4. c4 {[%emt 0:00:53]} e6 {[%emt 0:01:41]} 5. cxd5 {[%emt 0:01:19]} exd5 {[%emt 0:00:53]} 6. Bb5+ {[%emt 0:00:16]} Bd7 {[%emt 0:01:04]} 7. Bxd7+ {[%emt 0:00:31]} Nbxd7 {[%emt 0:00:59]} 8. dxc5 {[%emt 0:00:09]} Nxc5 {[%emt 0:02:13]} 9. O-O {[%emt 0:00:08]} Bd6 {[%emt 0:01:12]} 10. Bd2 {[%emt 0:00:07]} O-O {[%emt 0:01:57]} 11. Bc3 {[%emt 0:00:11]} Nfe4 {[%emt 0:00:38]} 12. Bd4 {[%emt 0:00:08]} Ne6 {[%emt 0:01:02]} 13. Nc3 {[%emt 0:01:34]} Bb4 {[%emt 0:14:06]} 14. Ne2 {[%emt 0:04:17]} N6g5 {[%emt 0:11:38]} 15. Nxg5 {[%emt 0:08:49]} Qxg5 {[%emt 0:01:22]} 16. Qb3 {[%emt 0:00:10]} Bd6 {[%emt 0:02:36]} 17. Rad1 {[%emt 0:01:29]} Rae8 {[%emt 0:14:18]} 18. f4 {[%emt 0:15:43]} Qh5 {[%emt 0:21:44]} 19. Rf3 {[%emt 0:03:05]} Re6 {[%emt 0:02:19]} 20. Ng3 {[%emt 0:02:27]} Nxg3 {[%emt 0:00:40]} 21. Rxg3 {[%emt 0:00:20]} Rg6 {[%emt 0:00:07]} 22. Bxa7 {[%emt 0:08:03]} Rxg3 {[%emt 0:04:15]} 23. hxg3 {[%emt 0:00:10]} Qg4 {[%emt 0:00:52]} 24. Qxd5 {[%emt 0:01:33]} Be7 {[%emt 0:00:53]} 25. Qf3 {[%emt 0:01:50]} Qc8 {[%emt 0:05:09]} 26. Bd4 {[%emt 0:01:50]} Qc2 {[%emt 0:01:14]} 27. Rf1 {[%emt 0:03:18]} b6 {[%emt 0:01:17]} 28. Qg4 {[%emt 0:05:37]} g6 {[%emt 0:00:11]} 29. Qd7 {[%emt 0:00:22]} Bc5 {[%emt 0:01:09]} 30. Qc6 {[%emt 0:00:36]} Qd2 {[%emt 0:01:40]} 31. Qf6 {[%emt 0:02:53]} Bxd4 {[%emt 0:00:05]} 32. Qxd4 {[%emt 0:00:04]} Rd8 {[%emt 0:00:06]} 33. Qxd2 {[%emt 0:01:15]} Rxd2 {[%emt 0:00:05]} 34. Rf2 {[%emt 0:00:10]} Rd1+ {[%emt 0:00:05]} 35. Kh2 {[%emt 0:00:42]} Re1 {[%emt 0:00:05]} 36. Rc2 {[%emt 0:00:38]} Rxe3 {[%emt 0:01:44]} 37. Rc6 {[%emt 0:00:08]} Kg7 {[%emt 0:00:26]} 38. Rxb6 {[%emt 0:00:10]} Kh6 {[%emt 0:00:49]} 39. a4 {[%emt 0:00:22]} Kh5 {[%emt 0:00:53]} 40. a5 {[%emt 0:00:04]} f5 {[%emt 0:01:38]} 41. a6 {[%emt 0:00:10]} Re1 {[%emt 0:00:04]} 42. Rb3 {[%emt 0:00:37]} 1-0

[Event "10th Sharjah Cup Women 2020"]
[Site "Sharjah"]
[Date "2020.01.12"]
[Round "9.15"]
[White "Kyrkjebo, Hanna B."]
[Black "Drljevic, Ljilja"]
[Result "0-1"]
[ECO "B06"]
[WhiteElo "1963"]
[BlackElo "2193"]
[Annotator "ChessBase"]
[PlyCount "136"]
[EventDate "2020.01.04"]
[EventType "swiss"]
[EventCountry "UAE"]
[SourceTitle "playchess.com"]
[Source "ChessBase"]
[SourceQuality "1"]
[TimeControl "5400+30"]

1. e4 {[%emt 0:00:00]} g6 {[%emt 0:00:00]} 2. d4 {[%emt 0:00:30]} d6 {[%emt 0:00:00]} 3. Nc3 {[%emt 0:00:00]} Bg7 {[%emt 0:00:00]} 4. Be3 {[%emt 0:00:00]} a6 {[%emt 0:00:19]} 5. Qd2 {[%emt 0:00:00]} b5 {[%emt 0:00:53]} 6. Bd3 {[%emt 0:00:09]} Nd7 {[%emt 0:02:51]} 7. a4 {[%emt 0:00:54]} b4 {[%emt 0:00:42]} 8. Nce2 {[%emt 0:00:17]} c5 {[%emt 0:02:20]} 9. c3 {[%emt 0:02:14]} Rb8 {[%emt 0:05:31]} 10. Nf3 {[%emt 0:02:26]} h6 {[%emt 0:02:49]} 11. Ng3 {[%emt 0:01:38]} e6 {[%emt 0:10:28]} 12. O-O {[%emt 0:05:49]} Ne7 {[%emt 0:03:16]} 13. Qe2 {[%emt 0:10:32]} Qa5 {[%emt 0:14:41]} 14. Qc2 {[%emt 0:11:01]} O-O {[%emt 0:04:17]} 15. Bf4 {[%emt 0:06:08]} e5 {[%emt 0:07:31]} 16. dxe5 {[%emt 0:05:26]} dxe5 {[%emt 0:01:41]} 17. Be3 {[%emt 0:00:28]} b3 {[%emt 0:11:02]} 18. Qd1 {[%emt 0:05:36]} Rd8 {[%emt 0:07:22]} 19. Bc4 {[%emt 0:06:10]} Qc7 {[%emt 0:03:17]} 20. Qc1 {[%emt 0:03:46]} Nb6 {[%emt 0:01:13]} 21. Bxb3 {[%emt 0:01:36]} c4 {[%emt 0:00:02]} 22. Bc2 {[%emt 0:00:26]} Kh7 {[%emt 0:01:38]} 23. Nd2 {[%emt 0:05:09]} Be6 {[%emt 0:01:21]} 24. Kh1 {[%emt 0:02:25]} Nd7 {[%emt 0:00:57]} 25. f4 {[%emt 0:11:03]} exf4 {[%emt 0:00:05]} 26. Bxf4 {[%emt 0:00:24]} Be5 {[%emt 0:00:27]} 27. Bxe5 {[%emt 0:00:47]} Nxe5 {[%emt 0:00:26]} 28. Nf3 {[%emt 0:00:25]} N7c6 {[%emt 0:01:13]} 29. Ne2 {[%emt 0:03:07]} Nxf3 {[%emt 0:02:13]} 30. Rxf3 {[%emt 0:00:30]} Bg4 {[%emt 0:01:18]} 31. Rf2 {[%emt 0:01:53]} Bxe2 {[%emt 0:00:15]} 32. Rxe2 {[%emt 0:00:12]} Ne5 {[%emt 0:00:30]} 33. Rb1 {[%emt 0:02:57]} Rb6 {[%emt 0:08:46]} 34. Qf4 {[%emt 0:05:53]} Rdb8 {[%emt 0:02:17]} 35. Rd1 {[%emt 0:03:43]} Rxb2 {[%emt 0:01:23]} 36. Red2 {[%emt 0:00:18]} Qe7 {[%emt 0:03:37]} 37. Rd5 {[%emt 0:00:50]} f6 {[%emt 0:01:07]} 38. R5d2 {[%emt 0:03:00]} R8b7 {[%emt 0:00:37]} 39. Rf1 {[%emt 0:00:38]} Kg7 {[%emt 0:00:22]} 40. h3 {[%emt 0:00:38]} a5 {[%emt 0:00:40]} 41. Rdf2 {[%emt 0:00:45]} Ra2 {[%emt 0:00:30]} 42. Bb1 {[%emt 0:00:41]} Rxa4 {[%emt 0:00:27]} 43. Qg3 {[%emt 0:00:28]} Ra1 {[%emt 0:00:24]} 44. Bc2 {[%emt 0:00:28]} Ra2 {[%emt 0:00:23]} 45. Bd1 {[%emt 0:00:19]} Rxf2 {[%emt 0:00:42]} 46. Qxf2 {[%emt 0:00:25]} Qd6 {[%emt 0:00:33]} 47. Bf3 {[%emt 0:00:47]} Nd3 {[%emt 0:00:32]} 48. Qa2 {[%emt 0:00:23]} Qc5 {[%emt 0:00:30]} 49. e5 {[%emt 0:00:37]} Rf7 {[%emt 0:00:30]} 50. e6 {[%emt 0:00:30]} Re7 {[%emt 0:00:21]} 51. Be4 {[%emt 0:00:13]} Ne5 {[%emt 0:00:34]} 52. Ra1 {[%emt 0:00:39]} Rxe6 {[%emt 0:00:33]} 53. Qxa5 {[%emt 0:00:16]} Qxa5 {[%emt 0:00:33]} 54. Rxa5 {[%emt 0:00:06]} f5 {[%emt 0:00:15]} 55. Bd5 {[%emt 0:00:41]} Rb6 {[%emt 0:00:38]} 56. Ra7+ {[%emt 0:01:03]} Kf6 {[%emt 0:00:17]} 57. Rc7 {[%emt 0:00:11]} Rb3 {[%emt 0:00:33]} 58. Ra7 {[%emt 0:00:51]} Rxc3 {[%emt 0:00:15]} 59. Ra6+ {[%emt 0:00:19]} Kg5 {[%emt 0:00:30]} 60. Re6 {[%emt 0:00:38]} Kf4 {[%emt 0:00:50]} 61. Kh2 {[%emt 0:00:32]} Rc2 {[%emt 0:00:24]} 62. Re8 {[%emt 0:00:34]} Rd2 {[%emt 0:00:40]} 63. Bb7 {[%emt 0:00:32]} c3 {[%emt 0:00:21]} 64. Rc8 {[%emt 0:00:21]} c2 {[%emt 0:00:31]} 65. Rc3 {[%emt 0:00:34]} Nd3 {[%emt 0:00:31]} 66. Rc4+ {[%emt 0:00:22]} Ke5 {[%emt 0:00:21]} 67. Rc3 {[%emt 0:00:45]} c1=Q {[%emt 0:00:22]} 68. Rxc1 {[%emt 0:00:07]} Nxc1 {[%emt 0:00:02]} 0-1

[Event "10th Sharjah Cup Women 2020"]
[Site "Sharjah"]
[Date "2020.01.12"]
[Round "9.16"]
[White "Al Maamari, Wafia Darwish"]
[Black "Babayan, Armine"]
[Result "0-1"]
[ECO "B32"]
[WhiteElo "1866"]
[BlackElo "2186"]
[Annotator "ChessBase"]
[PlyCount "72"]
[EventDate "2020.01.04"]
[EventType "swiss"]
[EventCountry "UAE"]
[SourceTitle "playchess.com"]
[Source "ChessBase"]
[SourceQuality "1"]
[TimeControl "5400+30"]

1. e4 {[%emt 0:05:56]} c5 {[%emt 0:00:00]} 2. Nf3 {[%emt 0:00:14]} Nc6 {[%emt 0:00:00]} 3. d4 {[%emt 0:00:05]} cxd4 {[%emt 0:00:00]} 4. Nxd4 {[%emt 0:00:05]} Qb6 {[%emt 0:00:00]} 5. Nb3 {[%emt 0:00:07]} Nf6 {[%emt 0:00:01]} 6. Nc3 {[%emt 0:00:27]} e6 {[%emt 0:00:04]} 7. a3 {[%emt 0:00:15]} a6 {[%emt 0:02:49]} 8. Bf4 {[%emt 0:01:03]} h5 {[%emt 0:04:48]} 9. Be2 {[%emt 0:05:27]} h4 {[%emt 0:02:03]} 10. e5 {[%emt 0:03:29]} Qc7 {[%emt 0:01:02]} 11. exf6 {[%emt 0:09:00]} Qxf4 {[%emt 0:00:06]} 12. fxg7 {[%emt 0:00:16]} Bxg7 {[%emt 0:00:08]} 13. Qd2 {[%emt 0:01:14]} Qxd2+ {[%emt 0:01:15]} 14. Kxd2 {[%emt 0:00:20]} b5 {[%emt 0:01:56]} 15. Rad1 {[%emt 0:02:09]} Bh6+ {[%emt 0:07:06]} 16. Ke1 {[%emt 0:00:46]} Ne5 {[%emt 0:05:52]} 17. Ne4 {[%emt 0:06:13]} d5 {[%emt 0:04:44]} 18. Nf6+ {[%emt 0:00:29]} Ke7 {[%emt 0:01:36]} 19. Ng4 {[%emt 0:00:12]} Bg7 {[%emt 0:02:30]} 20. Nxe5 {[%emt 0:00:23]} Bxe5 {[%emt 0:00:01]} 21. Nd4 {[%emt 0:00:27]} Bd7 {[%emt 0:01:12]} 22. h3 {[%emt 0:01:23]} Rag8 {[%emt 0:03:04]} 23. Kf1 {[%emt 0:05:40]} Rb8 {[%emt 0:01:34]} 24. c3 {[%emt 0:01:34]} Rhc8 {[%emt 0:01:44]} 25. Nf3 {[%emt 0:00:35]} Bf6 {[%emt 0:00:01]} 26. g4 {[%emt 0:00:37]} hxg3 {[%emt 0:00:25]} 27. fxg3 {[%emt 0:00:06]} a5 {[%emt 0:00:02]} 28. Nd2 {[%emt 0:08:30]} b4 {[%emt 0:01:26]} 29. cxb4 {[%emt 0:01:43]} axb4 {[%emt 0:00:12]} 30. axb4 {[%emt 0:00:05]} Bxb2 {[%emt 0:00:17]} 31. b5 {[%emt 0:00:22]} Bxb5 {[%emt 0:01:18]} 32. Bxb5 {[%emt 0:00:08]} Rxb5 {[%emt 0:00:01]} 33. g4 {[%emt 0:00:29]} Rc2 {[%emt 0:00:54]} 34. h4 {[%emt 0:00:39]} Bh8 {[%emt 0:01:52]} 35. g5 {[%emt 0:01:47]} Rbb2 {[%emt 0:00:15]} 36. Nb1 {[%emt 0:02:04]} Bd4 {[%emt 0:04:12]} 0-1

[Event "10th Sharjah Cup Women 2020"]
[Site "Sharjah"]
[Date "2020.01.12"]
[Round "9.17"]
[White "Michelle Catherina, P."]
[Black "Mariam, Essa"]
[Result "1-0"]
[ECO "B40"]
[WhiteElo "2143"]
[BlackElo "1560"]
[Annotator "ChessBase"]
[PlyCount "109"]
[EventDate "2020.01.04"]
[EventType "swiss"]
[EventCountry "UAE"]
[SourceTitle "playchess.com"]
[Source "ChessBase"]
[SourceQuality "1"]
[TimeControl "5400+30"]

1. e4 c5 2. Nf3 e6 3. d4 cxd4 4. Nxd4 Nf6 5. Nc3 Nc6 6. Be2 d5 7. exd5 Nxd5 8. Nxd5 Qxd5 9. Bf3 Qe5+ 10. Be3 Nxd4 11. Qxd4 Qxd4 12. Bxd4 Rg8 13. O-O-O Bd6 14. Rd3 Bf4+ 15. Be3 Bxe3+ 16. Rxe3 Ke7 17. Rhe1 Rd8 18. Be4 g6 19. g4 Rb8 20. Rh3 h5 21. gxh5 e5 22. Ra3 gxh5 23. Bf3 f6 24. Rxa7 Rd4 25. Bxh5 Rh4 26. Bd1 Rxh2 27. f4 Kd6 28. fxe5+ fxe5 29. Ra5 b5 30. a4 bxa4 31. Rexe5 Rh1 32. Re4 Bb7 33. Rd4+ Kc7 34. Raxa4 Bf3 35. Rac4+ Kb6 36. Rc3 Ra8 37. Rxf3 Ra1+ 38. Kd2 Raxd1+ 39. Kc3 Rb1 40. b3 Rh5 41. Rb4+ Kc5 42. Rbf4 Kd6 43. Rf5 Rh4 44. R5f4 Rh5 45. Kb4 Rh8 46. Kc3 Rh5 47. Rf6+ Ke5 48. Rf1 Rh3+ 49. R6f3 Rxf1 50. Rxh3 Rf4 51. Rd3 Ke6 52. b4 Ke7 53. Rd4 Rf6 54. b5 Rf5 55. Kb4 1-0

[Event "10th Sharjah Cup Women 2020"]
[Site "Sharjah"]
[Date "2020.01.12"]
[Round "9.18"]
[White "Greibrokk, Ingrid"]
[Black "Khalil, Hanan"]
[Result "1-0"]
[ECO "A10"]
[WhiteElo "1855"]
[BlackElo "1360"]
[Annotator "NA"]
[PlyCount "101"]
[EventDate "2020.01.04"]
[EventType "swiss"]
[EventCountry "UAE"]
[SourceTitle "playchess.com"]
[Source "ChessBase"]
[SourceQuality "1"]
[TimeControl "5400+30"]

1. c4 {[%emt 0:00:00]} d6 {[%emt 0:00:05]} 2. Nc3 {[%emt 0:00:00]} e5 {[%emt 0:00:13]} 3. g3 {[%emt 0:00:00]} Nf6 {[%emt 0:00:12]} 4. Bg2 {[%emt 0:00:00]} Be7 {[%emt 0:00:19]} 5. e3 {[%emt 0:00:00]} c6 {[%emt 0:00:17]} 6. Nge2 {[%emt 0:01:30]} Nbd7 {[%emt 0:00:17]} 7. O-O {[%emt 0:00:09]} O-O {[%emt 0:00:05]} 8. b3 {[%emt 0:00:13]} Re8 {[%emt 0:05:01]} 9. Bb2 {[%emt 0:00:36]} Bf8 {[%emt 0:00:53]} 10. d4 {[%emt 0:01:03]} Qc7 {[%emt 0:03:34]} 11. Qd2 {[%emt 0:02:45]} a6 {[%emt 0:05:09]} 12. Rad1 {[%emt 0:01:50]} Rb8 {[%emt 0:20:10]} 13. Ba3 {[%emt 0:03:14]} exd4 {[%emt 0:00:54]} 14. Qxd4 {[%emt 0:02:15]} Nc5 {[%emt 0:00:38]} 15. Nf4 {[%emt 0:07:03]} a5 {[%emt 0:09:09]} 16. Rfe1 {[%emt 0:03:57]} Bf5 {[%emt 0:04:04]} 17. e4 {[%emt 0:01:23]} Bg6 {[%emt 0:10:02]} 18. Nxg6 {[%emt 0:02:05]} hxg6 {[%emt 0:00:08]} 19. f4 {[%emt 0:00:13]} Nfd7 {[%emt 0:06:05]} 20. Bh3 {[%emt 0:02:53]} Nb6 {[%emt 0:05:36]} 21. Bxc5 {[%emt 0:04:12]} dxc5 {[%emt 0:00:13]} 22. Qf2 {[%emt 0:00:11]} Rbd8 {[%emt 0:02:41]} 23. Qf3 {[%emt 0:03:37]} Rd4 {[%emt 0:02:06]} 24. Ne2 {[%emt 0:00:10]} Rdxe4 {[%emt 0:00:37]} 25. f5 {[%emt 0:03:02]} gxf5 {[%emt 0:08:29]} 26. Bxf5 {[%emt 0:00:06]} Re3 {[%emt 0:00:06]} 27. Qf2 {[%emt 0:06:37]} Qe5 {[%emt 0:00:50]} 28. Kf1 {[%emt 0:01:06]} g6 {[%emt 0:02:57]} 29. Bh3 {[%emt 0:02:37]} Qb2 {[%emt 0:10:50]} 30. Nf4 {[%emt 0:00:18]} Rxe1+ {[%emt 0:00:10]} 31. Rxe1 {[%emt 0:00:11]} Rxe1+ {[%emt 0:00:07]} 32. Qxe1 {[%emt 0:00:53]} Qxa2 {[%emt 0:02:49]} 33. Qe8 {[%emt 0:25:39]} Qb1+ {[%emt 0:00:40]} 34. Kg2 {[%emt 0:01:25]} Qxb3 {[%emt 0:00:39]} 35. Ne6 {[%emt 0:02:34]} Qc2+ {[%emt 0:00:31]} 36. Kg1 {[%emt 0:02:31]} Qc1+ {[%emt 0:00:37]} 37. Kg2 {[%emt 0:00:04]} Qd2+ {[%emt 0:00:05]} 38. Kg1 {[%emt 0:00:11]} Qd6 {[%emt 0:00:55]} 39. Nd8 {[%emt 0:17:38]} Nxc4 {[%emt 0:00:11]} 40. Qxf7+ {[%emt 0:00:34]} Kh8 {[%emt 0:00:32]} 41. Be6 {[%emt 0:01:37]} Qd4+ {[%emt 0:00:51]} 42. Kg2 {[%emt 0:00:54]} Qb2+ {[%emt 0:00:36]} 43. Kh3 {[%emt 0:00:20]} Qg7 {[%emt 0:00:15]} 44. Qxg7+ {[%emt 0:00:22]} Bxg7 {[%emt 0:00:12]} 45. Bxc4 {[%emt 0:00:03]} b5 {[%emt 0:00:14]} 46. Bf7 {[%emt 0:00:21]} c4 {[%emt 0:01:09]} 47. Nxc6 {[%emt 0:00:08]} a4 {[%emt 0:00:33]} 48. Bxg6 {[%emt 0:02:57]} a3 {[%emt 0:00:10]} 49. Bb1 {[%emt 0:02:01]} c3 {[%emt 0:00:49]} 50. Nb4 {[%emt 0:00:11]} Bf8 {[%emt 0:00:18]} 51. Na2 {[%emt 0:00:29]} 1-0

[Event "10th Sharjah Cup Women 2020"]
[Site "Sharjah"]
[Date "2020.01.12"]
[Round "9.19"]
[White "Aysha Nasser H Alshamsi"]
[Black "Jalaluldeen, Kareen Kamal J."]
[Result "0-1"]
[ECO "B01"]
[WhiteElo "1303"]
[BlackElo "1784"]
[Annotator "NA"]
[PlyCount "56"]
[EventDate "2020.01.04"]
[EventType "swiss"]
[EventCountry "UAE"]
[SourceTitle "playchess.com"]
[Source "ChessBase"]
[SourceQuality "1"]
[TimeControl "5400+30"]

1. e4 {[%emt 0:00:00]} d5 {[%emt 0:00:00]} 2. exd5 {[%emt 0:00:00]} Qxd5 {[%emt 0:00:00]} 3. Nc3 {[%emt 0:00:00]} Qa5 {[%emt 0:00:00]} 4. Bc4 {[%emt 0:00:01]} Nf6 {[%emt 0:00:18]} 5. d3 {[%emt 0:00:42]} e5 {[%emt 0:06:31]} 6. Bd2 {[%emt 0:00:39]} c6 {[%emt 0:06:12]} 7. Qe2 {[%emt 0:04:15]} Bd6 {[%emt 0:03:33]} 8. Nf3 {[%emt 0:06:09]} Qc7 {[%emt 0:02:14]} 9. h3 {[%emt 0:06:04]} O-O {[%emt 0:01:24]} 10. g4 {[%emt 0:03:22]} b5 {[%emt 0:07:52]} 11. Bb3 {[%emt 0:01:03]} b4 {[%emt 0:07:06]} 12. Ne4 {[%emt 0:01:10]} Nbd7 {[%emt 0:01:39]} 13. Ng3 {[%emt 0:15:47]} Ba6 {[%emt 0:05:51]} 14. O-O-O {[%emt 0:03:15]} Nc5 {[%emt 0:03:05]} 15. Bc4 {[%emt 0:06:33]} Bxc4 {[%emt 0:07:36]} 16. dxc4 {[%emt 0:00:16]} e4 {[%emt 0:01:34]} 17. Nd4 {[%emt 0:02:43]} Rfe8 {[%emt 0:06:54]} 18. g5 {[%emt 0:06:49]} Nfd7 {[%emt 0:01:29]} 19. Ndf5 {[%emt 0:02:44]} Be5 {[%emt 0:01:49]} 20. h4 {[%emt 0:12:01]} Na4 {[%emt 0:01:52]} 21. Qg4 {[%emt 0:10:44]} Nxb2 22. Rde1 {[%emt 0:08:17]} Nxc4 {[%emt 0:15:29]} 23. Nxe4 {[%emt 0:01:02]} Nxd2 {[%emt 0:06:13]} 24. Nxd2 {[%emt 0:00:25]} Bc3 {[%emt 0:02:16]} 25. Rxe8+ {[%emt 0:03:29]} Rxe8 {[%emt 0:00:02]} 26. h5 {[%emt 0:00:37]} Ne5 {[%emt 0:04:57]} 27. Qg2 {[%emt 0:01:45]} Qd7 {[%emt 0:02:04]} 28. Ne3 {[%emt 0:01:53]} Qxd2+ {[%emt 0:01:16]} 0-1

[Event "10th Sharjah Cup Women 2020"]
[Site "Sharjah"]
[Date "2020.01.12"]
[Round "9.20"]
[White "Razan, Alshaeby"]
[Black "Khezrian, Nooralzahra"]
[Result "1-0"]
[ECO "C25"]
[WhiteElo "1735"]
[BlackElo "1310"]
[Annotator "NA"]
[PlyCount "81"]
[EventDate "2020.01.04"]
[EventType "swiss"]
[EventCountry "UAE"]
[SourceTitle "playchess.com"]
[Source "ChessBase"]
[SourceQuality "1"]
[TimeControl "5400+30"]

1. e4 {[%emt 0:00:00]} e5 {[%emt 0:08:11]} 2. Nc3 {[%emt 0:00:00]} Nc6 {[%emt 0:00:47]} 3. g3 {[%emt 0:00:00]} g6 {[%emt 0:01:28]} 4. Bg2 {[%emt 0:00:00]} Bg7 {[%emt 0:00:07]} 5. d3 {[%emt 0:00:19]} d6 {[%emt 0:00:50]} 6. Nge2 {[%emt 0:01:21]} Nge7 {[%emt 0:00:16]} 7. O-O {[%emt 0:03:24]} f5 {[%emt 0:06:03]} 8. f4 {[%emt 0:04:55]} O-O {[%emt 0:01:02]} 9. Be3 {[%emt 0:02:46]} fxe4 {[%emt 0:07:18]} 10. dxe4 {[%emt 0:02:54]} exf4 {[%emt 0:03:24]} 11. gxf4 {[%emt 0:01:46]} Bg4 {[%emt 0:02:44]} 12. h3 {[%emt 0:02:58]} Be6 {[%emt 0:00:42]} 13. Qd2 {[%emt 0:08:06]} Qd7 {[%emt 0:05:16]} 14. Kh2 {[%emt 0:00:10]} Rad8 {[%emt 0:03:47]} 15. Rad1 {[%emt 0:00:32]} b6 {[%emt 0:08:25]} 16. Nb5 {[%emt 0:06:06]} Na5 {[%emt 0:04:42]} 17. Nbd4 {[%emt 0:03:25]} Nc4 {[%emt 0:01:42]} 18. Qc1 {[%emt 0:00:11]} c5 {[%emt 0:06:53]} 19. Nxe6 {[%emt 0:02:49]} Bxb2 {[%emt 0:00:49]} 20. Nxf8 {[%emt 0:00:49]} Rxf8 {[%emt 0:01:18]} 21. Qb1 {[%emt 0:00:30]} Nxe3 {[%emt 0:05:18]} 22. Qxb2 {[%emt 0:00:19]} Nxf1+ {[%emt 0:00:34]} 23. Rxf1 {[%emt 0:01:29]} Nc6 {[%emt 0:03:26]} 24. Qb3+ {[%emt 0:02:57]} Kg7 {[%emt 0:00:50]} 25. Qc3+ {[%emt 0:01:02]} Kg8 {[%emt 0:00:29]} 26. Qc4+ {[%emt 0:01:23]} Kg7 {[%emt 0:00:09]} 27. Nc3 {[%emt 0:00:59]} Nd4 {[%emt 0:01:11]} 28. Nd5 {[%emt 0:01:11]} b5 {[%emt 0:00:32]} 29. Qd3 {[%emt 0:00:38]} Qb7 {[%emt 0:02:20]} 30. c3 {[%emt 0:02:30]} Nc6 {[%emt 0:02:03]} 31. Qg3 {[%emt 0:07:09]} Qa6 {[%emt 0:02:08]} 32. f5 {[%emt 0:03:04]} Nd8 {[%emt 0:04:45]} 33. fxg6 {[%emt 0:07:02]} Rxf1 {[%emt 0:02:12]} 34. gxh7+ {[%emt 0:00:58]} Kxh7 {[%emt 0:00:15]} 35. Bxf1 {[%emt 0:00:36]} Qxa2+ {[%emt 0:01:06]} 36. Bg2 {[%emt 0:00:02]} Nf7 {[%emt 0:00:54]} 37. Nf6+ {[%emt 0:00:28]} Kh6 {[%emt 0:01:26]} 38. Ne8 {[%emt 0:05:13]} Qe6 {[%emt 0:02:17]} 39. Qg7+ {[%emt 0:00:32]} Kh5 {[%emt 0:00:06]} 40. Bf3+ {[%emt 0:00:30]} Kh4 {[%emt 0:00:15]} 41. Qg3# {[%emt 0:00:06]} 1-0